[Event "Teplice Open 2019"]
[Site "Teplice"]
[Date "2019.06.23"]
[Round "9.37"]
[White "Czerw, Dawid"]
[Black "Subramanian, Aditya"]
[Result "1-0"]
[ECO "D31"]
[WhiteElo "2317"]
[BlackElo "2167"]
[Annotator "NA"]
[PlyCount "48"]
[EventDate "2019.06.15"]
[EventType "swiss"]
[EventCountry "CZE"]
[SourceTitle "playchess.com"]
[Source "ChessBase"]
[SourceQuality "1"]
[TimeControl "40/5400+30:1800+30"]

1. d4 {[%emt 0:00:00]} d5 {[%emt 0:01:58]} 2. c4 {[%emt 0:00:00]} e6 {[%emt 0:00:03]} 3. Nc3 {[%emt 0:00:00]} a6 {[%emt 0:00:04]} 4. cxd5 {[%emt 0:02:47]} exd5 {[%emt 0:00:06]} 5. Bf4 {[%emt 0:00:48]} Nf6 {[%emt 0:00:30]} 6. e3 {[%emt 0:01:50]} Bd6 {[%emt 0:00:16]} 7. Bg5 {[%emt 0:02:35]} Be6 {[%emt 0:02:31]} 8. Bd3 {[%emt 0:00:50]} Nbd7 {[%emt 0:01:43]} 9. Nge2 {[%emt 0:03:41]} h6 {[%emt 0:01:52]} 10. Bf4 {[%emt 0:02:30]} Qe7 {[%emt 0:00:51]} 11. Bxd6 {[%emt 0:02:08]} Qxd6 {[%emt 0:00:09]} 12. f3 {[%emt 0:01:38]} c5 {[%emt 0:04:23]} 13. O-O {[%emt 0:06:25]} O-O 14. Qd2 {[%emt 0:07:04]} Rac8 {[%emt 0:02:05]} 15. Rfd1 {[%emt 0:08:04]} Rfe8 {[%emt 0:01:10]} 16. Rac1 {[%emt 0:02:52]} cxd4 {[%emt 0:02:40]} 17. Nxd4 {[%emt 0:00:00]} Nc5 {[%emt 0:07:22]} 18. Bb1 {[%emt 0:00:00]} Bd7 {[%emt 0:01:17]} 19. Re1 {[%emt 0:00:00]} Rc7 {[%emt 0:09:39]} 20. Rcd1 {[%emt 0:00:00]} Rec8 {[%emt 0:03:35]} 21. Nde2 {[%emt 0:00:51]} Qe5 {[%emt 0:04:47]} 22. Nf4 {[%emt 0:03:56]} Bc6 {[%emt 0:02:02]} 23. Nfxd5 {[%emt 0:08:55]} Nxd5 {[%emt 0:05:17]} 24. Nxd5 {[%emt 0:00:38]} Rd7 {[%emt 0:02:32]} 1-0